[Event "*** Titled Tuesday Blitz"]
[Site "Chess.com"]
[Date "2018.11.06"]
[Round "2"]
[White "poummba"]
[Black "GhostOfGreenval"]
[Result "1/2-1/2"]
[WhiteElo "2405"]
[BlackElo "2697"]
[TimeControl "180+2"]
[EndTime "13:19:13 PST"]
[Termination "Game drawn by agreement"]

1. d4 {[%clk 0:03:01.9]} 1... Nf6 {[%clk 0:02:58.1]} 2. c4 {[%clk 0:03:03.2]}
2... e6 {[%clk 0:02:59.2]} 3. g3 {[%clk 0:03:04.2]} 3... c5 {[%clk 0:02:59]} 4.
Nf3 {[%clk 0:03:05.3]} 4... cxd4 {[%clk 0:02:59.7]} 5. Nxd4 {[%clk 0:03:06.7]}
5... d5 {[%clk 0:03:01.4]} 6. Bg2 {[%clk 0:03:08.1]} 6... e5 {[%clk 0:03:00.7]}
7. Nf3 {[%clk 0:03:08.6]} 7... d4 {[%clk 0:03:02.2]} 8. O-O {[%clk 0:03:08.8]}
8... Nc6 {[%clk 0:03:01]} 9. e3 {[%clk 0:03:09.1]} 9... Be7 {[%clk 0:02:59.1]}
10. exd4 {[%clk 0:03:09.4]} 10... exd4 {[%clk 0:03:01]} 11. Bf4 {[%clk
0:03:10.6]} 11... O-O {[%clk 0:03:01.5]} 12. Nbd2 {[%clk 0:03:12.3]} 12... Be6
{[%clk 0:02:54.2]} 13. Ne5 {[%clk 0:02:56.7]} 13... Nxe5 {[%clk 0:02:50.9]} 14.
Bxe5 {[%clk 0:02:58.6]} 14... Ng4 {[%clk 0:02:52]} 15. Nf3 {[%clk 0:02:26.6]}
15... Bxc4 {[%clk 0:02:51.5]} 16. Re1 {[%clk 0:02:12.6]} 16... d3 {[%clk
0:02:45.9]} 17. h3 {[%clk 0:01:39.4]} 17... Nxe5 {[%clk 0:02:45.6]} 18. Nxe5
{[%clk 0:01:41.2]} 18... Ba6 {[%clk 0:02:45.1]} 19. Qb3 {[%clk 0:01:25.8]} 19...
Rc8 {[%clk 0:02:33.3]} 20. Bd5 {[%clk 0:01:05.8]} 20... Qb6 {[%clk 0:01:59.8]}
21. Qxb6 {[%clk 0:00:55.1]} 21... axb6 {[%clk 0:02:01.7]} 22. Nxf7 {[%clk
0:00:55.9]} 22... d2 {[%clk 0:01:37.2]} 23. Rxe7 {[%clk 0:00:56.7]} 23... Rc1+
{[%clk 0:01:37.1]} 24. Kh2 {[%clk 0:00:54.5]} 24... d1=Q {[%clk 0:01:04.4]} 25.
Nh6+ {[%clk 0:00:35.6]} 25... Kh8 {[%clk 0:01:04.9]} 26. Nf7+ {[%clk 0:00:36.4]}
26... Kg8 {[%clk 0:01:06]} 27. Nh6+ {[%clk 0:00:37.5]} 1/2-1/2

[Event "*** Titled Tuesday Blitz"]
[Site "Chess.com"]
[Date "2018.11.06"]
[Round "2"]
[White "Rakhmanov_Aleksandr"]
[Black "Ar4uha"]
[Result "0-1"]
[WhiteElo "2864"]
[BlackElo "2599"]
[TimeControl "180+2"]
[EndTime "13:19:27 PST"]
[Termination "Ar4uha won by resignation"]

1. c4 {[%clk 0:03:01.9]} 1... Nf6 {[%clk 0:03:00.4]} 2. Nc3 {[%clk 0:03:02.4]}
2... e6 {[%clk 0:03:01.2]} 3. e4 {[%clk 0:03:03]} 3... d5 {[%clk 0:03:02.8]} 4.
exd5 {[%clk 0:03:04.7]} 4... exd5 {[%clk 0:03:03.7]} 5. d4 {[%clk 0:03:06.4]}
5... Nc6 {[%clk 0:03:04.1]} 6. Be3 {[%clk 0:03:06.2]} 6... Bb4 {[%clk 0:03:03]}
7. Bd3 {[%clk 0:03:05.8]} 7... O-O {[%clk 0:03:03.8]} 8. Ne2 {[%clk 0:03:06.8]}
8... dxc4 {[%clk 0:03:03.8]} 9. Bxc4 {[%clk 0:03:08.7]} 9... Bf5 {[%clk
0:03:02.6]} 10. a3 {[%clk 0:03:07.9]} 10... Bd6 {[%clk 0:03:03.3]} 11. Ng3
{[%clk 0:03:08]} 11... Bg6 {[%clk 0:03:03.6]} 12. O-O {[%clk 0:02:59.9]} 12...
Re8 {[%clk 0:03:04.3]} 13. Qd2 {[%clk 0:03:00.2]} 13... Ng4 {[%clk 0:03:03.1]}
14. Bg5 {[%clk 0:02:39.1]} 14... Be7 {[%clk 0:03:03.9]} 15. Bxe7 {[%clk
0:02:37.3]} 15... Qxe7 {[%clk 0:03:04.4]} 16. h3 {[%clk 0:02:35.4]} 16... Nf6
{[%clk 0:03:05.2]} 17. Bb5 {[%clk 0:02:23.9]} 17... Qd6 {[%clk 0:02:57.2]} 18.
Rad1 {[%clk 0:02:14.9]} 18... a6 {[%clk 0:02:54.4]} 19. Bxc6 {[%clk 0:02:02]}
19... Qxc6 {[%clk 0:02:56.3]} 20. d5 {[%clk 0:02:01.9]} 20... Qd6 {[%clk
0:02:57.1]} 21. Rfe1 {[%clk 0:02:01.8]} 21... Rxe1+ {[%clk 0:02:50.6]} 22. Rxe1
{[%clk 0:02:03.2]} 22... Re8 {[%clk 0:02:52.5]} 23. Rxe8+ {[%clk 0:02:01.4]}
23... Nxe8 {[%clk 0:02:54.4]} 24. Nce4 {[%clk 0:01:54.9]} 24... Qe5 {[%clk
0:02:52.1]} 25. f4 {[%clk 0:01:50.8]} 25... Qe7 {[%clk 0:02:52.7]} 26. Qd4
{[%clk 0:01:06.2]} 26... f6 {[%clk 0:02:53.7]} 27. Nc5 {[%clk 0:00:52.9]} 27...
Nd6 {[%clk 0:02:54.4]} 28. Ne6 {[%clk 0:00:52.4]} 28... Nf5 {[%clk 0:02:41.1]}
29. Nxf5 {[%clk 0:00:49.8]} 29... Bxf5 {[%clk 0:02:43]} 30. Qc5 {[%clk 0:00:49]}
30... Qxc5+ {[%clk 0:02:36.9]} 31. Nxc5 {[%clk 0:00:50.9]} 31... Bc8 {[%clk
0:02:36.1]} 32. Kf2 {[%clk 0:00:45.1]} 32... Kf7 {[%clk 0:02:36.6]} 33. Ke3
{[%clk 0:00:42.9]} 33... b6 {[%clk 0:02:36.4]} 34. Ne4 {[%clk 0:00:42.1]} 34...
Bf5 {[%clk 0:02:36.9]} 35. Nf2 {[%clk 0:00:28.5]} 35... Ke7 {[%clk 0:02:32.1]}
36. g4 {[%clk 0:00:28.7]} 36... Bb1 {[%clk 0:02:33.4]} 37. Kd4 {[%clk
0:00:27.6]} 37... Kd6 {[%clk 0:02:34.7]} 38. g5 {[%clk 0:00:27.5]} 38... f5
{[%clk 0:02:34.6]} 39. h4 {[%clk 0:00:27.6]} 39... Ba2 {[%clk 0:02:31.9]} 40. h5
{[%clk 0:00:21.1]} 40... Bxd5 {[%clk 0:02:32.6]} 41. h6 {[%clk 0:00:22.4]} 41...
c5+ {[%clk 0:02:33]} 42. Ke3 {[%clk 0:00:23.2]} 42... gxh6 {[%clk 0:02:33.3]}
43. gxh6 {[%clk 0:00:25.1]} 43... Ke6 {[%clk 0:02:33.9]} 44. Nh3 {[%clk
0:00:24.7]} 44... Kf6 {[%clk 0:02:33.9]} 45. Ng5 {[%clk 0:00:26]} 45... Kg6
{[%clk 0:02:35.5]} 46. Nf3 {[%clk 0:00:27.6]} 46... Bxf3 {[%clk 0:02:33.9]} 47.
Kxf3 {[%clk 0:00:28.7]} 47... Kxh6 {[%clk 0:02:35.4]} 48. Kg3 {[%clk 0:00:30.6]}
48... c4 {[%clk 0:02:35.4]} 49. Kh4 {[%clk 0:00:32.5]} 49... b5 {[%clk
0:02:36.3]} 0-1

[Event "*** Titled Tuesday Blitz"]
[Site "Chess.com"]
[Date "2018.11.06"]
[Round "2"]
[White "Jbd735"]
[Black "juniortay"]
[Result "1-0"]
[WhiteElo "2471"]
[BlackElo "2391"]
[TimeControl "180+2"]
[EndTime "13:19:41 PST"]
[Termination "Jbd735 won by resignation"]

1. e4 {[%clk 0:03:01.9]} 1... e5 {[%clk 0:03:00.3]} 2. Nf3 {[%clk 0:03:02.8]}
2... Nf6 {[%clk 0:03:01.4]} 3. Nxe5 {[%clk 0:03:03.2]} 3... Nc6 {[%clk
0:03:02.5]} 4. Nxc6 {[%clk 0:03:01.3]} 4... dxc6 {[%clk 0:03:04.4]} 5. d3 {[%clk
0:02:59.5]} 5... Bc5 {[%clk 0:03:05.4]} 6. Be2 {[%clk 0:02:51.4]} 6... h5 {[%clk
0:03:05.5]} 7. Be3 {[%clk 0:02:44.9]} 7... Bxe3 {[%clk 0:03:05.8]} 8. fxe3
{[%clk 0:02:45.7]} 8... Ng4 {[%clk 0:03:07.7]} 9. Bxg4 {[%clk 0:02:30.1]} 9...
hxg4 {[%clk 0:03:09.6]} 10. g3 {[%clk 0:02:18.4]} 10... Qg5 {[%clk 0:03:07.6]}
11. Qe2 {[%clk 0:02:06.6]} 11... Be6 {[%clk 0:03:07.7]} 12. Nc3 {[%clk 0:02:06]}
12... O-O-O {[%clk 0:03:07.9]} 13. O-O-O {[%clk 0:02:03.2]} 13... Qa5 {[%clk
0:02:42.7]} 14. Kb1 {[%clk 0:02:02.5]} 14... b5 {[%clk 0:02:42.4]} 15. a3 {[%clk
0:01:49.6]} 15... b4 {[%clk 0:02:39.4]} 16. axb4 {[%clk 0:01:49.8]} 16... Qxb4
{[%clk 0:02:40.6]} 17. d4 {[%clk 0:01:42]} 17... Rh5 {[%clk 0:02:23.8]} 18. d5
{[%clk 0:01:26]} 18... cxd5 {[%clk 0:02:16]} 19. exd5 {[%clk 0:01:20.6]} 19...
Bd7 {[%clk 0:01:48.1]} 20. Qa6+ {[%clk 0:01:14.8]} 20... Qb7 {[%clk 0:01:47.1]}
21. Qxb7+ {[%clk 0:01:13.3]} 21... Kxb7 {[%clk 0:01:49]} 22. Rd2 {[%clk
0:01:06.1]} 22... Rdh8 {[%clk 0:01:32.6]} 23. Rf1 {[%clk 0:01:05.8]} 23... Rxh2
{[%clk 0:01:26.6]} 24. Rxh2 {[%clk 0:01:05.8]} 24... Rxh2 {[%clk 0:01:27.1]} 25.
Rxf7 {[%clk 0:01:07.4]} 25... Rh1+ {[%clk 0:01:27]} 26. Ka2 {[%clk 0:01:07]}
26... Kc8 {[%clk 0:01:16.3]} 27. Rxg7 {[%clk 0:01:07.8]} 27... Bf5 {[%clk
0:01:16.8]} 28. e4 {[%clk 0:01:07.4]} 28... Bd7 {[%clk 0:01:15]} 29. e5 {[%clk
0:01:06.9]} 29... Bf5 {[%clk 0:01:09]} 30. e6 {[%clk 0:01:02.7]} 30... Re1
{[%clk 0:01:08.5]} 31. Rg5 {[%clk 0:00:56.1]} 31... Bxc2 {[%clk 0:01:07.6]} 32.
Rxg4 {[%clk 0:00:56.1]} 32... c6 {[%clk 0:01:01.3]} 33. Rc4 {[%clk 0:00:52.5]}
33... Bd3 {[%clk 0:00:56.8]} 34. Rxc6+ {[%clk 0:00:52.1]} 34... Kd8 {[%clk
0:00:58.3]} 35. Kb3 {[%clk 0:00:49.2]} 1-0

[Event "*** Titled Tuesday Blitz"]
[Site "Chess.com"]
[Date "2018.11.06"]
[Round "2"]
[White "eljanov"]
[Black "DrVitman"]
[Result "1-0"]
[WhiteElo "2812"]
[BlackElo "2622"]
[TimeControl "180+2"]
[EndTime "13:19:45 PST"]
[Termination "eljanov won on time"]

1. c4 {[%clk 0:03:01.9]} 1... Nf6 {[%clk 0:03:00.1]} 2. Nc3 {[%clk 0:03:01]}
2... g6 {[%clk 0:03:00.3]} 3. g3 {[%clk 0:03:01.5]} 3... Bg7 {[%clk 0:03:00.5]}
4. Bg2 {[%clk 0:03:03.1]} 4... O-O {[%clk 0:03:01.6]} 5. e4 {[%clk 0:03:04.6]}
5... d6 {[%clk 0:03:01.7]} 6. Nge2 {[%clk 0:03:06.2]} 6... c5 {[%clk 0:03:02.4]}
7. d3 {[%clk 0:03:07.6]} 7... Nc6 {[%clk 0:03:03.6]} 8. O-O {[%clk 0:03:09.2]}
8... Rb8 {[%clk 0:03:03.5]} 9. Rb1 {[%clk 0:03:07.9]} 9... a6 {[%clk 0:03:04.1]}
10. a4 {[%clk 0:03:09.5]} 10... Ne8 {[%clk 0:03:04]} 11. Be3 {[%clk 0:03:10.6]}
11... Nc7 {[%clk 0:03:03.6]} 12. d4 {[%clk 0:03:11.9]} 12... cxd4 {[%clk
0:03:04.3]} 13. Nxd4 {[%clk 0:03:13.8]} 13... Nxd4 {[%clk 0:02:56.2]} 14. Bxd4
{[%clk 0:03:13.7]} 14... Bxd4 {[%clk 0:02:57.3]} 15. Qxd4 {[%clk 0:03:14.3]}
15... Be6 {[%clk 0:02:47.8]} 16. a5 {[%clk 0:02:56.6]} 16... Bd7 {[%clk
0:02:44.5]} 17. b4 {[%clk 0:02:50.2]} 17... Ne6 {[%clk 0:02:40.4]} 18. Qd3
{[%clk 0:02:44.5]} 18... Bc6 {[%clk 0:02:35.4]} 19. Nd5 {[%clk 0:02:43.5]} 19...
Bxd5 {[%clk 0:02:30.8]} 20. exd5 {[%clk 0:02:44.3]} 20... Nc7 {[%clk 0:02:32.1]}
21. Rfe1 {[%clk 0:02:36.9]} 21... Re8 {[%clk 0:02:29.3]} 22. h4 {[%clk
0:02:34.4]} 22... b6 {[%clk 0:02:26.9]} 23. axb6 {[%clk 0:02:33.8]} 23... Rxb6
{[%clk 0:02:28]} 24. h5 {[%clk 0:02:32]} 24... Qb8 {[%clk 0:02:27.3]} 25. h6
{[%clk 0:02:32.5]} 25... f6 {[%clk 0:02:21.1]} 26. Qc3 {[%clk 0:02:23.5]} 26...
Kf7 {[%clk 0:02:13.5]} 27. Bh3 {[%clk 0:02:20.9]} 27... Qd8 {[%clk 0:02:00.8]}
28. Rb2 {[%clk 0:02:05.7]} 28... Rb7 {[%clk 0:01:58]} 29. Rbe2 {[%clk 0:02:00]}
29... Qb8 {[%clk 0:01:49.3]} 30. Bd7 {[%clk 0:02:00]} 30... Na8 {[%clk
0:01:33.2]} 31. Bxe8+ {[%clk 0:01:54.8]} 31... Qxe8 {[%clk 0:01:35.1]} 32. Re6
{[%clk 0:01:52.8]} 32... Qf8 {[%clk 0:01:23.8]} 33. c5 {[%clk 0:01:51.7]} 33...
dxc5 {[%clk 0:01:24.2]} 34. bxc5 {[%clk 0:01:52.3]} 34... Qd8 {[%clk 0:01:11.1]}
35. d6 {[%clk 0:01:50.3]} 35... exd6 {[%clk 0:01:10.4]} 36. Rxd6 {[%clk
0:01:49.8]} 1-0

[Event "*** Titled Tuesday Blitz"]
[Site "Chess.com"]
[Date "2018.11.06"]
[Round "2"]
[White "bascheyaro"]
[Black "sere99"]
[Result "1-0"]
[WhiteElo "2717"]
[BlackElo "2308"]
[TimeControl "180+2"]
[EndTime "13:19:47 PST"]
[Termination "bascheyaro won by resignation"]

1. d4 {[%clk 0:03:01.9]} 1... d5 {[%clk 0:02:59.6]} 2. Nf3 {[%clk 0:03:03.2]}
2... Nf6 {[%clk 0:03:00.3]} 3. c4 {[%clk 0:03:04.7]} 3... e6 {[%clk 0:03:01.4]}
4. Nc3 {[%clk 0:03:06.2]} 4... c6 {[%clk 0:03:02.3]} 5. e3 {[%clk 0:03:07.1]}
5... Nbd7 {[%clk 0:03:03.4]} 6. Bd2 {[%clk 0:03:07.6]} 6... Bd6 {[%clk
0:03:04.1]} 7. Rc1 {[%clk 0:03:08.7]} 7... O-O {[%clk 0:03:04.2]} 8. h3 {[%clk
0:03:10.1]} 8... Re8 {[%clk 0:02:57.4]} 9. Bd3 {[%clk 0:03:10.4]} 9... dxc4
{[%clk 0:02:55.1]} 10. Bxc4 {[%clk 0:03:11.8]} 10... b5 {[%clk 0:02:56.6]} 11.
Bb3 {[%clk 0:03:13]} 11... Bb7 {[%clk 0:02:57.9]} 12. O-O {[%clk 0:03:13.6]}
12... a6 {[%clk 0:02:59.4]} 13. a4 {[%clk 0:03:13]} 13... Qb8 {[%clk 0:02:58.7]}
14. axb5 {[%clk 0:03:07.7]} 14... cxb5 {[%clk 0:02:56.4]} 15. Re1 {[%clk
0:03:00.7]} 15... Ne4 {[%clk 0:02:40.3]} 16. Nxe4 {[%clk 0:02:47.2]} 16... Bxe4
{[%clk 0:02:42.2]} 17. Ng5 {[%clk 0:02:47.8]} 17... Bg6 {[%clk 0:02:43.7]} 18.
Qf3 {[%clk 0:02:40.1]} 18... Nf6 {[%clk 0:02:29.8]} 19. e4 {[%clk 0:02:41]}
19... h6 {[%clk 0:02:19.6]} 20. e5 {[%clk 0:02:42]} 20... hxg5 {[%clk
0:02:08.4]} 21. exf6 {[%clk 0:02:20.9]} 21... Bf4 {[%clk 0:01:54.3]} 22. Bxf4
{[%clk 0:02:12.8]} 22... Qxf4 {[%clk 0:01:56.2]} 23. Qxf4 {[%clk 0:02:03.6]}
23... gxf4 {[%clk 0:01:58.1]} 24. fxg7 {[%clk 0:02:04.9]} 24... Kxg7 {[%clk
0:01:59.6]} 25. d5 {[%clk 0:01:57.1]} 25... exd5 {[%clk 0:01:39.2]} 26. Bxd5
{[%clk 0:01:59]} 26... Rxe1+ {[%clk 0:01:39.5]} 27. Rxe1 {[%clk 0:02:00.9]}
27... Rd8 {[%clk 0:01:41.2]} 28. Bb7 {[%clk 0:02:01.4]} 28... Rd2 {[%clk
0:01:41.5]} 29. b4 {[%clk 0:01:49.9]} 29... Rb2 {[%clk 0:01:33.6]} 30. Bxa6
{[%clk 0:01:50.9]} 30... Rxb4 {[%clk 0:01:34.9]} 31. f3 {[%clk 0:01:50.4]} 31...
Rb2 {[%clk 0:01:33.9]} 32. h4 {[%clk 0:01:51.7]} 32... b4 {[%clk 0:01:32.6]} 33.
Kh2 {[%clk 0:01:49.6]} 33... b3 {[%clk 0:01:32.4]} 34. Bc4 {[%clk 0:01:50.7]}
34... Kf6 {[%clk 0:01:28.9]} 35. Rd1 {[%clk 0:01:48.5]} 35... Bc2 {[%clk
0:01:26.9]} 36. Rd6+ {[%clk 0:01:48.8]} 36... Ke5 {[%clk 0:01:26.6]} 37. Rd5+
{[%clk 0:01:50.1]} 37... Kf6 {[%clk 0:01:23]} 38. Rb5 {[%clk 0:01:50.8]} 38...
Rb1 {[%clk 0:01:18.5]} 39. Rb6+ {[%clk 0:01:48.3]} 39... Kg7 {[%clk 0:01:10.6]}
40. h5 {[%clk 0:01:49]} 40... b2 {[%clk 0:01:08.4]} 41. Ba2 {[%clk 0:01:47.2]}
41... Re1 {[%clk 0:01:03.9]} 42. Rxb2 {[%clk 0:01:44.4]} 42... Bf5 {[%clk
0:01:01.7]} 43. Rb7 {[%clk 0:01:43.8]} 43... Re2 {[%clk 0:01:02.2]} 44. Rxf7+
{[%clk 0:01:43.9]} 44... Kh6 {[%clk 0:01:02.5]} 45. Rxf5 {[%clk 0:01:43.9]}
45... Rxa2 {[%clk 0:01:04.4]} 46. Rxf4 {[%clk 0:01:44.9]} 46... Kxh5 {[%clk
0:01:05.7]} 47. Kg3 {[%clk 0:01:46]} 1-0

[Event "*** Titled Tuesday Blitz"]
[Site "Chess.com"]
[Date "2018.11.06"]
[Round "2"]
[White "pastouche06"]
[Black "BIG_Pirate"]
[Result "1-0"]
[WhiteElo "2439"]
[BlackElo "2398"]
[TimeControl "180+2"]
[EndTime "13:19:51 PST"]
[Termination "pastouche06 won by resignation"]

1. d4 {[%clk 0:03:01.9]} 1... d5 {[%clk 0:03:00.6]} 2. c4 {[%clk 0:03:02.6]}
2... c6 {[%clk 0:03:01.8]} 3. Nf3 {[%clk 0:03:03.4]} 3... Nf6 {[%clk 0:03:02.8]}
4. e3 {[%clk 0:03:04.3]} 4... e6 {[%clk 0:03:03.8]} 5. b3 {[%clk 0:03:04.7]}
5... Nbd7 {[%clk 0:03:03.1]} 6. Bb2 {[%clk 0:03:00.5]} 6... Bb4+ {[%clk
0:03:03.6]} 7. Nbd2 {[%clk 0:02:59.9]} 7... O-O {[%clk 0:03:00]} 8. Bd3 {[%clk
0:02:59.2]} 8... Ne4 {[%clk 0:02:33.8]} 9. a3 {[%clk 0:02:53.8]} 9... Ba5 {[%clk
0:02:04.1]} 10. b4 {[%clk 0:02:46.2]} 10... Nxd2 {[%clk 0:02:04.6]} 11. Qxd2
{[%clk 0:02:46]} 11... Bc7 {[%clk 0:02:04.8]} 12. O-O {[%clk 0:02:39]} 12... Re8
{[%clk 0:02:05.1]} 13. e4 {[%clk 0:02:37.7]} 13... dxc4 {[%clk 0:01:59]} 14.
Bxc4 {[%clk 0:02:37.6]} 14... e5 {[%clk 0:01:25.1]} 15. Ng5 {[%clk 0:01:56.5]}
15... Re7 {[%clk 0:01:12.8]} 16. dxe5 {[%clk 0:01:55.9]} 16... Nf8 {[%clk
0:00:56.1]} 17. Qxd8 {[%clk 0:01:35.2]} 17... Bxd8 {[%clk 0:00:56.7]} 18. f4
{[%clk 0:01:21]} 18... Ng6 {[%clk 0:00:47.7]} 19. Rad1 {[%clk 0:01:11.9]} 19...
Bb6+ {[%clk 0:00:47.5]} 20. Kh1 {[%clk 0:01:12.9]} 20... h6 {[%clk 0:00:48.8]}
21. Nxf7 {[%clk 0:00:59]} 21... Rxf7 {[%clk 0:00:47.7]} 22. Bxf7+ {[%clk
0:00:58.1]} 22... Kxf7 {[%clk 0:00:49.6]} 23. f5 {[%clk 0:00:59.7]} 23... Nf8
{[%clk 0:00:25.9]} 24. e6+ {[%clk 0:01:00.2]} 24... Kg8 {[%clk 0:00:26.6]} 25.
e7 {[%clk 0:01:00]} 25... Kf7 {[%clk 0:00:20.9]} 26. exf8=Q+ {[%clk 0:00:56.6]}
26... Kxf8 {[%clk 0:00:22.8]} 27. e5 {[%clk 0:00:52.7]} 1-0

[Event "*** Titled Tuesday Blitz"]
[Site "Chess.com"]
[Date "2018.11.06"]
[Round "2"]
[White "Vamostodorecto"]
[Black "ZuchBolt"]
[Result "1-0"]
[WhiteElo "2431"]
[BlackElo "2258"]
[TimeControl "180+2"]
[EndTime "13:20:06 PST"]
[Termination "Vamostodorecto won by resignation"]

1. d4 {[%clk 0:03:01.5]} 1... d5 {[%clk 0:03:00.7]} 2. c4 {[%clk 0:03:01.6]}
2... c6 {[%clk 0:03:01.6]} 3. Nf3 {[%clk 0:03:01.8]} 3... Nf6 {[%clk 0:03:02.5]}
4. Nc3 {[%clk 0:03:02]} 4... dxc4 {[%clk 0:03:03.5]} 5. e3 {[%clk 0:03:01.6]}
5... b5 {[%clk 0:03:03.4]} 6. a4 {[%clk 0:03:02]} 6... b4 {[%clk 0:03:01]} 7.
Na2 {[%clk 0:03:02.8]} 7... a5 {[%clk 0:02:56.5]} 8. Bxc4 {[%clk 0:03:02.9]}
8... e6 {[%clk 0:02:57.6]} 9. O-O {[%clk 0:03:03.1]} 9... Be7 {[%clk 0:02:58.3]}
10. Qe2 {[%clk 0:03:02.3]} 10... O-O {[%clk 0:02:59.3]} 11. e4 {[%clk
0:03:02.6]} 11... Ba6 {[%clk 0:02:59.4]} 12. Bxa6 {[%clk 0:03:00.2]} 12... Nxa6
{[%clk 0:03:01.3]} 13. Bg5 {[%clk 0:03:01.2]} 13... h6 {[%clk 0:02:57]} 14. Bh4
{[%clk 0:02:59.5]} 14... Qb6 {[%clk 0:02:52.3]} 15. Nc1 {[%clk 0:02:54.8]} 15...
c5 {[%clk 0:02:50.4]} 16. Qb5 {[%clk 0:02:40]} 16... Rab8 {[%clk 0:02:44.8]} 17.
Ne5 {[%clk 0:02:26.7]} 17... g5 {[%clk 0:02:13.9]} 18. Nc6 {[%clk 0:02:07]}
18... gxh4 {[%clk 0:01:42.5]} 19. Nxe7+ {[%clk 0:02:01.7]} 19... Kg7 {[%clk
0:01:27.4]} 20. e5 {[%clk 0:01:44.7]} 20... Nd5 {[%clk 0:01:22.2]} 21. Nxd5
{[%clk 0:01:43.7]} 21... exd5 {[%clk 0:01:21.3]} 22. Qe2 {[%clk 0:01:36.5]}
22... cxd4 {[%clk 0:00:58.6]} 23. Nd3 {[%clk 0:01:31.9]} 23... Qg6 {[%clk
0:00:18.7]} 24. Nf4 {[%clk 0:01:15.1]} 24... Qe4 {[%clk 0:00:19.2]} 25. Qg4+
{[%clk 0:01:00.4]} 25... Kh8 {[%clk 0:00:19.9]} 26. Rae1 {[%clk 0:01:02]} 26...
Qh7 {[%clk 0:00:20.6]} 27. e6 {[%clk 0:00:56.2]} 27... Rg8 {[%clk 0:00:19.4]}
28. Qxh4 {[%clk 0:00:55.8]} 28... Qg7 {[%clk 0:00:20]} 29. exf7 {[%clk
0:00:54.4]} 29... Qxf7 {[%clk 0:00:19.8]} 30. Qxh6+ {[%clk 0:00:54.5]} 30... Qh7
{[%clk 0:00:21.4]} 31. Qxa6 {[%clk 0:00:53.5]} 1-0

[Event "*** Titled Tuesday Blitz"]
[Site "Chess.com"]
[Date "2018.11.06"]
[Round "2"]
[White "HaryKane"]
[Black "Chessialist"]
[Result "1-0"]
[WhiteElo "2586"]
[BlackElo "2557"]
[TimeControl "180+2"]
[EndTime "13:20:19 PST"]
[Termination "HaryKane won by resignation"]

1. e4 {[%clk 0:03:01.9]} 1... c5 {[%clk 0:03:00.4]} 2. Nf3 {[%clk 0:03:03.1]}
2... Nc6 {[%clk 0:03:01.7]} 3. d4 {[%clk 0:03:03]} 3... cxd4 {[%clk 0:03:01.4]}
4. Nxd4 {[%clk 0:03:04.9]} 4... Qb6 {[%clk 0:03:02.7]} 5. Nb3 {[%clk 0:03:05.6]}
5... Nf6 {[%clk 0:03:03.6]} 6. Bd3 {[%clk 0:03:07]} 6... e6 {[%clk 0:03:04.5]}
7. Qe2 {[%clk 0:03:07.8]} 7... Qc7 {[%clk 0:03:03.9]} 8. Nc3 {[%clk 0:03:08.2]}
8... a6 {[%clk 0:03:04.5]} 9. Bd2 {[%clk 0:03:09]} 9... d6 {[%clk 0:03:04.8]}
10. O-O {[%clk 0:03:10]} 10... Be7 {[%clk 0:03:06]} 11. Rae1 {[%clk 0:03:10.6]}
11... O-O {[%clk 0:03:07]} 12. f4 {[%clk 0:03:12.1]} 12... b5 {[%clk 0:03:07.9]}
13. Rf3 {[%clk 0:03:13.3]} 13... b4 {[%clk 0:02:54.8]} 14. Nd1 {[%clk
0:03:05.9]} 14... a5 {[%clk 0:02:55.8]} 15. e5 {[%clk 0:03:04.6]} 15... dxe5
{[%clk 0:02:36]} 16. fxe5 {[%clk 0:03:06.5]} 16... Ng4 {[%clk 0:02:37]} 17.
Bxh7+ {[%clk 0:03:00.4]} 17... Kxh7 {[%clk 0:02:35.7]} 18. Rh3+ {[%clk
0:02:48.4]} 18... Kg8 {[%clk 0:01:53]} 19. Qxg4 {[%clk 0:02:49]} 19... f5 {[%clk
0:01:42]} 20. exf6 {[%clk 0:02:22.3]} 20... Bxf6 {[%clk 0:01:42.6]} 21. Qh5
{[%clk 0:02:19.9]} 21... a4 {[%clk 0:01:33.1]} 22. Nc5 {[%clk 0:02:13.8]} 22...
Nd4 {[%clk 0:01:08.6]} 23. Ne4 {[%clk 0:02:01.3]} 23... Bb7 {[%clk 0:01:06.2]}
24. Qh7+ {[%clk 0:01:55.4]} 24... Kf7 {[%clk 0:01:06.2]} 25. Nxf6 {[%clk
0:01:56.4]} 25... Kxf6 {[%clk 0:01:01.4]} 26. Rh6+ {[%clk 0:01:43.1]} 26... Kf7
{[%clk 0:00:30.2]} 27. Rf1+ {[%clk 0:01:34.7]} 27... Nf5 {[%clk 0:00:29.2]} 28.
Qg6+ {[%clk 0:01:13.5]} 28... Kg8 {[%clk 0:00:25.7]} 29. Qxe6+ {[%clk
0:01:14.4]} 29... Qf7 {[%clk 0:00:26.9]} 30. Rxf5 {[%clk 0:01:06.7]} 30... Qxe6
{[%clk 0:00:20]} 31. Rxf8+ {[%clk 0:01:07.4]} 31... Rxf8 {[%clk 0:00:21.9]} 32.
Rxe6 {[%clk 0:01:08.7]} 32... Bd5 {[%clk 0:00:21.3]} 33. Re1 {[%clk 0:00:57.1]}
33... Bxa2 {[%clk 0:00:22.1]} 34. Bxb4 {[%clk 0:00:58.3]} 34... Rc8 {[%clk
0:00:23.3]} 35. Nc3 {[%clk 0:00:57.6]} 35... Bf7 {[%clk 0:00:23]} 36. Ra1 {[%clk
0:00:54.8]} 1-0

[Event "*** Titled Tuesday Blitz"]
[Site "Chess.com"]
[Date "2018.11.06"]
[Round "2"]
[White "chesstatour"]
[Black "Assasin14"]
[Result "0-1"]
[WhiteElo "2099"]
[BlackElo "2218"]
[TimeControl "180+2"]
[EndTime "13:20:31 PST"]
[Termination "Assasin14 won by resignation"]

1. c4 {[%clk 0:03:01.9]} 1... Nf6 {[%clk 0:02:58.7]} 2. Nc3 {[%clk 0:03:03]}
2... e5 {[%clk 0:02:55.5]} 3. Nf3 {[%clk 0:03:02.8]} 3... Nc6 {[%clk 0:02:55.9]}
4. d4 {[%clk 0:03:03.7]} 4... exd4 {[%clk 0:02:54.7]} 5. Nxd4 {[%clk 0:03:04.6]}
5... Bb4 {[%clk 0:02:55.1]} 6. g3 {[%clk 0:03:03.8]} 6... d6 {[%clk 0:02:49.3]}
7. Bg2 {[%clk 0:03:04.1]} 7... Bd7 {[%clk 0:02:46.1]} 8. O-O {[%clk 0:03:02.1]}
8... Bxc3 {[%clk 0:02:45.5]} 9. bxc3 {[%clk 0:03:02.5]} 9... Rb8 {[%clk
0:02:40.4]} 10. Ba3 {[%clk 0:02:38]} 10... O-O {[%clk 0:02:20.8]} 11. c5 {[%clk
0:02:35.1]} 11... d5 {[%clk 0:02:18.7]} 12. c4 {[%clk 0:02:26.6]} 12... dxc4
{[%clk 0:01:59.3]} 13. Nxc6 {[%clk 0:02:23.9]} 13... Bxc6 {[%clk 0:01:57.3]} 14.
Bxc6 {[%clk 0:02:16.9]} 14... bxc6 {[%clk 0:01:59.2]} 15. Qa4 {[%clk 0:01:53.6]}
15... Qd5 {[%clk 0:01:54.8]} 16. Rfc1 {[%clk 0:01:06.1]} 16... Rfe8 {[%clk
0:01:38.4]} 17. e3 {[%clk 0:01:01.8]} 17... Re4 {[%clk 0:00:59]} 18. Qxa7 {[%clk
0:00:59.7]} 18... Rbe8 {[%clk 0:00:58.2]} 19. Qxc7 {[%clk 0:00:49.4]} 19... Ng4
{[%clk 0:00:56.2]} 20. f3 {[%clk 0:00:27.5]} 20... Rxe3 {[%clk 0:00:49.3]} 21.
Qf4 {[%clk 0:00:13.3]} 21... Ne5 {[%clk 0:00:26.2]} 22. Rd1 {[%clk 0:00:11.4]}
22... Qxf3 {[%clk 0:00:20.1]} 23. Qxf3 {[%clk 0:00:09.1]} 23... Nxf3+ {[%clk
0:00:22]} 24. Kg2 {[%clk 0:00:10.5]} 24... Rxa3 {[%clk 0:00:23.5]} 25. Rd6
{[%clk 0:00:07]} 25... h5 {[%clk 0:00:17]} 26. Rxc6 {[%clk 0:00:03.3]} 26...
Re2+ {[%clk 0:00:18]} 27. Kf1 {[%clk 0:00:03.2]} 27... Rxh2 {[%clk 0:00:19.3]}
28. Rc8+ {[%clk 0:00:02.3]} 28... Kh7 {[%clk 0:00:20.8]} 0-1